{"text_format":"1","workbook":"xlsx","n_sheets":11,"sheets":["lk","bidang-lab","JenisSample","listsample","report_alat","export","usr_info","tema","results","listparameter","listvariable"],"not_rendered":{"charts":0,"images":0,"macros":1,"external_links":0,"defined_names":4,"comments":0,"pivot_tables":0},"unopened":[],"bounds":{"document_bytes":16777216,"sheet_cells":100000,"rows_first":2000,"rows_last":500,"rows_between":2000,"halvings":0,"cell_chars":16384,"cell_head_chars":4096},"cells_cut":0,"cells_raw":0,"read":"whole","date_system":"1900"}

{"sheet":"lk","index":0,"n_rows":568,"n_cols":5,"rows_kept":568,"cut":false,"hidden":false,"merged":[]}
["Job ID:",null,"akses cabang"]
["karyawan id:",null,null,{"$f":"usr_info!A2","v":0},{"$f":"usr_info!A2","v":0}]
["Penetapan:",null,"18-Kadar LOI",{"$f":"COUNT(11:11)","v":0},{"$f":"usr_info!G2","v":0}]
["Metode  :",null,null,{"$f":"LEFT(C3,SEARCH(\"-\",C3)-1)","v":"18"}]
["Jumlah sample :",null,{"$f":"COUNTIF(B12:B512,\"<>\"&\"\")","v":0},111]
["Kode form :",null,null,{"$f":"usr_info!F2","v":0},{"$f":"usr_info!F2","v":0}]
["Ret. ID Job analisa",null,691]
[]
[]
["No","No Sample Simlab (QR)","Jenis Sample","No Sample Lims"]
[]
[null,null,null,{"$f":"IF(OR(B12=\"\",C12=\"\"),\"\",B12&\"#\"&C12)","v":""}]
[1,null,null,{"$f":"IF(OR(B13=\"\",C13=\"\"),\"\",B13&\"#\"&C13)","v":""}]
[1,null,null,{"$f":"IF(OR(B14=\"\",C14=\"\"),\"\",B14&\"#\"&C14)","v":""}]
[null,null,null,{"$f":"IF(OR(B15=\"\",C15=\"\"),\"\",B15&\"#\"&C15)","v":""}]
[null,null,null,""]
[null,null,null,""]
[null,null,null,""]
[null,null,null,""]
[null,null,null,""]
[null,null,null,""]
[null,null,null,""]
[null,null,null,""]
[null,null,null,""]
[null,null,null,""]
[null,null,null,""]
[null,null,null,""]
[null,null,null,""]
[null,null,null,""]
[null,null,null,""]
[null,null,null,""]
[null,null,null,""]
[null,null,null,""]
[null,null,null,""]
[null,null,null,""]
[null,null,null,""]
[null,null,null,""]
[null,null,null,""]
[null,null,null,""]
[null,null,null,""]
[null,null,null,""]
[null,null,null,""]
[null,null,null,""]
[null,null,null,""]
[null,null,null,""]
[null,null,null,""]
[null,null,null,""]
[null,null,null,""]
[null,null,null,""]
[null,null,null,""]
[null,null,null,""]
[null,null,null,""]
[null,null,null,""]
[null,null,null,""]
[null,null,null,""]
[null,null,null,""]
[null,null,null,""]
[null,null,null,""]
[null,null,null,""]
[null,null,null,""]
[null,null,null,""]
[null,null,null,""]
[null,null,null,""]
[null,null,null,""]
[null,null,null,""]
[null,null,null,""]
[null,null,null,""]
[null,null,null,""]
[null,null,null,""]
[null,null,null,""]
[null,null,null,""]
[null,null,null,""]
[null,null,null,""]
[null,null,null,""]
[null,null,null,""]
[null,null,null,""]
[null,null,null,{"$f":"IF(OR(B77=\"\",C77=\"\"),\"\",B77&\"#\"&C77)","v":""}]
[null,null,null,""]
[null,null,null,""]
[null,null,null,""]
[null,null,null,""]
[null,null,null,""]
[null,null,null,""]
[null,null,null,""]
[null,null,null,""]
[null,null,null,""]
[null,null,null,""]
[null,null,null,""]
[null,null,null,""]
[null,null,null,""]
[null,null,null,""]
[null,null,null,""]
[null,null,null,""]
[null,null,null,""]
[null,null,null,""]
[null,null,null,""]
[null,null,null,""]
[null,null,null,""]
[null,null,null,""]
[null,null,null,""]
[null,null,null,""]
[null,null,null,""]
[null,null,null,""]
[null,null,null,""]
[null,null,null,""]
[null,null,null,""]
[null,null,null,""]
[null,null,null,""]
[null,null,null,""]
[null,null,null,""]
[null,null,null,""]
[null,null,null,""]
[null,null,null,""]
[null,null,null,""]
[null,null,null,""]
[null,null,null,""]
[null,null,null,""]
[null,null,null,""]
[null,null,null,""]
[null,null,null,""]
[null,null,null,""]
[null,null,null,""]
[null,null,null,""]
[null,null,null,""]
[null,null,null,""]
[null,null,null,""]
[null,null,null,""]
[null,null,null,""]
[null,null,null,""]
[null,null,null,""]
[null,null,null,""]
[null,null,null,""]
[null,null,null,""]
[null,null,null,""]
[null,null,null,""]
[null,null,null,""]
[null,null,null,""]
[null,null,null,""]
[null,null,null,""]
[null,null,null,""]
[null,null,null,{"$f":"IF(OR(B141=\"\",C141=\"\"),\"\",B141&\"#\"&C141)","v":""}]
[null,null,null,""]
[null,null,null,""]
[null,null,null,""]
[null,null,null,""]
[null,null,null,""]
[null,null,null,""]
[null,null,null,""]
[null,null,null,""]
[null,null,null,""]
[null,null,null,""]
[null,null,null,""]
[null,null,null,""]
[null,null,null,""]
[null,null,null,""]
[null,null,null,""]
[null,null,null,""]
[null,null,null,""]
[null,null,null,""]
[null,null,null,""]
[null,null,null,""]
[null,null,null,""]
[null,null,null,""]
[null,null,null,""]
[null,null,null,""]
[null,null,null,""]
[null,null,null,""]
[null,null,null,""]
[null,null,null,""]
[null,null,null,""]
[null,null,null,""]
[null,null,null,""]
[null,null,null,""]
[null,null,null,""]
[null,null,null,""]
[null,null,null,""]
[null,null,null,""]
[null,null,null,""]
[null,null,null,""]
[null,null,null,""]
[null,null,null,""]
[null,null,null,""]
[null,null,null,""]
[null,null,null,""]
[null,null,null,""]
[null,null,null,""]
[null,null,null,""]
[null,null,null,""]
[null,null,null,""]
[null,null,null,""]
[null,null,null,""]
[null,null,null,""]
[null,null,null,""]
[null,null,null,""]
[null,null,null,""]
[null,null,null,""]
[null,null,null,""]
[null,null,null,""]
[null,null,null,""]
[null,null,null,""]
[null,null,null,""]
[null,null,null,""]
[null,null,null,""]
[null,null,null,""]
[null,null,null,{"$f":"IF(OR(B205=\"\",C205=\"\"),\"\",B205&\"#\"&C205)","v":""}]
[null,null,null,""]
[null,null,null,""]
[null,null,null,""]
[null,null,null,""]
[null,null,null,""]
[null,null,null,""]
[null,null,null,""]
[null,null,null,""]
[null,null,null,""]
[null,null,null,""]
[null,null,null,""]
[null,null,null,""]
[null,null,null,""]
[null,null,null,""]
[null,null,null,""]
[null,null,null,""]
[null,null,null,""]
[null,null,null,""]
[null,null,null,""]
[null,null,null,""]
[null,null,null,""]
[null,null,null,""]
[null,null,null,""]
[null,null,null,""]
[null,null,null,""]
[null,null,null,""]
[null,null,null,""]
[null,null,null,""]
[null,null,null,""]
[null,null,null,""]
[null,null,null,""]
[null,null,null,""]
[null,null,null,""]
[null,null,null,""]
[null,null,null,""]
[null,null,null,""]
[null,null,null,""]
[null,null,null,""]
[null,null,null,""]
[null,null,null,""]
[null,null,null,""]
[null,null,null,""]
[null,null,null,""]
[null,null,null,""]
[null,null,null,""]
[null,null,null,""]
[null,null,null,""]
[null,null,null,""]
[null,null,null,""]
[null,null,null,""]
[null,null,null,""]
[null,null,null,""]
[null,null,null,""]
[null,null,null,""]
[null,null,null,""]
[null,null,null,""]
[null,null,null,""]
[null,null,null,""]
[null,null,null,""]
[null,null,null,""]
[null,null,null,""]
[null,null,null,""]
[null,null,null,""]
[null,null,null,{"$f":"IF(OR(B269=\"\",C269=\"\"),\"\",B269&\"#\"&C269)","v":""}]
[null,null,null,""]
[null,null,null,""]
[null,null,null,""]
[null,null,null,""]
[null,null,null,""]
[null,null,null,""]
[null,null,null,""]
[null,null,null,""]
[null,null,null,""]
[null,null,null,""]
[null,null,null,""]
[null,null,null,""]
[null,null,null,""]
[null,null,null,""]
[null,null,null,""]
[null,null,null,""]
[null,null,null,""]
[null,null,null,""]
[null,null,null,""]
[null,null,null,""]
[null,null,null,""]
[null,null,null,""]
[null,null,null,""]
[null,null,null,""]
[null,null,null,""]
[null,null,null,""]
[null,null,null,""]
[null,null,null,""]
[null,null,null,""]
[null,null,null,""]
[null,null,null,""]
[null,null,null,""]
[null,null,null,""]
[null,null,null,""]
[null,null,null,""]
[null,null,null,""]
[null,null,null,""]
[null,null,null,""]
[null,null,null,""]
[null,null,null,""]
[null,null,null,""]
[null,null,null,""]
[null,null,null,""]
[null,null,null,""]
[null,null,null,""]
[null,null,null,""]
[null,null,null,""]
[null,null,null,""]
[null,null,null,""]
[null,null,null,""]
[null,null,null,""]
[null,null,null,""]
[null,null,null,""]
[null,null,null,""]
[null,null,null,""]
[null,null,null,""]
[null,null,null,""]
[null,null,null,""]
[null,null,null,""]
[null,null,null,""]
[null,null,null,""]
[null,null,null,""]
[null,null,null,""]
[null,null,null,{"$f":"IF(OR(B333=\"\",C333=\"\"),\"\",B333&\"#\"&C333)","v":""}]
[null,null,null,""]
[null,null,null,""]
[null,null,null,""]
[null,null,null,""]
[null,null,null,""]
[null,null,null,""]
[null,null,null,""]
[null,null,null,""]
[null,null,null,""]
[null,null,null,""]
[null,null,null,""]
[null,null,null,""]
[null,null,null,""]
[null,null,null,""]
[null,null,null,""]
[null,null,null,""]
[null,null,null,""]
[null,null,null,""]
[null,null,null,""]
[null,null,null,""]
[null,null,null,""]
[null,null,null,""]
[null,null,null,""]
[null,null,null,""]
[null,null,null,""]
[null,null,null,""]
[null,null,null,""]
[null,null,null,""]
[null,null,null,""]
[null,null,null,""]
[null,null,null,""]
[null,null,null,""]
[null,null,null,""]
[null,null,null,""]
[null,null,null,""]
[null,null,null,""]
[null,null,null,""]
[null,null,null,""]
[null,null,null,""]
[null,null,null,""]
[null,null,null,""]
[null,null,null,""]
[null,null,null,""]
[null,null,null,""]
[null,null,null,""]
[null,null,null,""]
[null,null,null,""]
[null,null,null,""]
[null,null,null,""]
[null,null,null,""]
[null,null,null,""]
[null,null,null,""]
[null,null,null,""]
[null,null,null,""]
[null,null,null,""]
[null,null,null,""]
[null,null,null,""]
[null,null,null,""]
[null,null,null,""]
[null,null,null,""]
[null,null,null,""]
[null,null,null,""]
[null,null,null,""]
[null,null,null,{"$f":"IF(OR(B397=\"\",C397=\"\"),\"\",B397&\"#\"&C397)","v":""}]
[null,null,null,""]
[null,null,null,""]
[null,null,null,""]
[null,null,null,""]
[null,null,null,""]
[null,null,null,""]
[null,null,null,""]
[null,null,null,""]
[null,null,null,""]
[null,null,null,""]
[null,null,null,""]
[null,null,null,""]
[null,null,null,""]
[null,null,null,""]
[null,null,null,""]
[null,null,null,""]
[null,null,null,""]
[null,null,null,""]
[null,null,null,""]
[null,null,null,""]
[null,null,null,""]
[null,null,null,""]
[null,null,null,""]
[null,null,null,""]
[null,null,null,""]
[null,null,null,""]
[null,null,null,""]
[null,null,null,""]
[null,null,null,""]
[null,null,null,""]
[null,null,null,""]
[null,null,null,""]
[null,null,null,""]
[null,null,null,""]
[null,null,null,""]
[null,null,null,""]
[null,null,null,""]
[null,null,null,""]
[null,null,null,""]
[null,null,null,""]
[null,null,null,""]
[null,null,null,""]
[null,null,null,""]
[null,null,null,""]
[null,null,null,""]
[null,null,null,""]
[null,null,null,""]
[null,null,null,""]
[null,null,null,""]
[null,null,null,""]
[null,null,null,""]
[null,null,null,""]
[null,null,null,""]
[null,null,null,""]
[null,null,null,""]
[null,null,null,""]
[null,null,null,""]
[null,null,null,""]
[null,null,null,""]
[null,null,null,""]
[null,null,null,""]
[null,null,null,""]
[null,null,null,""]
[null,null,null,{"$f":"IF(OR(B461=\"\",C461=\"\"),\"\",B461&\"#\"&C461)","v":""}]
[null,null,null,""]
[null,null,null,""]
[null,null,null,""]
[null,null,null,""]
[null,null,null,""]
[null,null,null,""]
[null,null,null,""]
[null,null,null,""]
[null,null,null,""]
[null,null,null,""]
[null,null,null,""]
[null,null,null,""]
[null,null,null,""]
[null,null,null,""]
[null,null,null,""]
[null,null,null,""]
[null,null,null,""]
[null,null,null,""]
[null,null,null,""]
[null,null,null,""]
[null,null,null,""]
[null,null,null,""]
[null,null,null,""]
[null,null,null,""]
[null,null,null,""]
[null,null,null,""]
[null,null,null,""]
[null,null,null,""]
[null,null,null,""]
[null,null,null,""]
[null,null,null,""]
[null,null,null,""]
[null,null,null,""]
[null,null,null,""]
[null,null,null,""]
[null,null,null,""]
[null,null,null,""]
[null,null,null,""]
[null,null,null,""]
[null,null,null,""]
[null,null,null,""]
[null,null,null,""]
[null,null,null,""]
[null,null,null,""]
[null,null,null,""]
[null,null,null,""]
[null,null,null,""]
[null,null,null,""]
[null,null,null,""]
[null,null,null,""]
[null,null,null,""]
[null,null,null,""]
[null,null,null,""]
[null,null,null,""]
[null,null,null,""]
[null,null,null,""]
[null,null,null,""]
[null,null,null,""]
[null,null,null,""]
[null,null,null,""]
[null,null,null,""]
[null,null,null,""]
[null,null,null,""]
[null,null,null,{"$f":"IF(OR(B525=\"\",C525=\"\"),\"\",B525&\"#\"&C525)","v":""}]
[null,null,null,""]
[null,null,null,""]
[null,null,null,""]
[null,null,null,""]
[null,null,null,""]
[null,null,null,""]
[null,null,null,""]
[null,null,null,""]
[null,null,null,""]
[null,null,null,""]
[null,null,null,""]
[null,null,null,""]
[null,null,null,""]
[null,null,null,""]
[null,null,null,""]
[null,null,null,""]
[null,null,null,""]
[null,null,null,""]
[null,null,null,""]
[null,null,null,""]
[null,null,null,""]
[null,null,null,""]
[null,null,null,""]
[null,null,null,""]
[null,null,null,""]
[null,null,null,""]
[null,null,null,""]
[null,null,null,""]
[null,null,null,""]
[null,null,null,""]
[null,null,null,""]
[null,null,null,""]
[null,null,null,""]
[null,null,null,""]
[null,null,null,""]
[null,null,null,""]
[null,null,null,""]
[null,null,null,""]
[null,null,null,""]
[null,null,null,""]
[null,null,null,""]
[null,null,null,""]
[null,null,null,""]

{"sheet":"bidang-lab","index":1,"n_rows":4,"n_cols":13,"rows_kept":4,"cut":false,"hidden":false,"merged":[]}
[1,"Lab - Lingkungan",21,1,null,null,null,null,null,"selected","Lable","lab_id","lab_bidang_id"]
[2,"Lab - Kimia Umum dan Produk Konsumen",21,2,null,null,null,null,null,4,{"$f":"VLOOKUP($J$2,bidanglab,2)","v":"Mineral - Analisa Logam"},{"$f":"VLOOKUP($J$2,bidanglab,3)","v":64},{"$f":"IF(VLOOKUP($J$2,bidanglab,4)=\"\",\"\",VLOOKUP($J$2,bidanglab,4))","v":""}]
[3,"Lab - Minyak dan Gas",21,3]
[4,"Mineral - Analisa Logam",64]

{"sheet":"JenisSample","index":2,"n_rows":11,"n_cols":3,"rows_kept":11,"cut":false,"hidden":true,"merged":[]}
["kode","deskripsi","LOV"]
["/A","Default jenis sample\t","Sample"]
["/Blanko","Blanko atau tabung kosong","Blank"]
["/B","Duplo","Duplo"]
["/C","Triplo","Triplo"]
["/D","Quatro","Quatro"]
["/QC1","QC 1","QC 1"]
["/QC2","QC 2","QC 2"]
["/rep","Replikasi","Replikasi"]
["/CRM1","Sample CRM 1","CRM 1"]
["/CRM2","Sample CRM 1","CRM 2"]

{"sheet":"listsample","index":3,"n_rows":1,"n_cols":2,"rows_kept":1,"cut":false,"hidden":true,"merged":[]}
["no lab","no sample"]

{"sheet":"report_alat","index":4,"n_rows":2,"n_cols":6,"rows_kept":2,"cut":false,"hidden":true,"merged":[]}
["Lable Sample","Lable Sample LIMS","MC TOP","Kadar Loi","MC Analitic","Iron Trioxide (Fe2O3)"]
[null,151,152,153,154]

{"sheet":"export","index":5,"n_rows":1,"n_cols":10,"rows_kept":1,"cut":false,"hidden":true,"merged":[]}
["Job","Penetapan","Metode","Karyawan_ID","No_Sample","Tipe_Sample","VarID","Var","Result","Formula"]

{"sheet":"usr_info","index":6,"n_rows":1,"n_cols":10,"rows_kept":1,"cut":false,"hidden":false,"merged":[]}
["namaLengkap","kanca_id","lab_id","org_id","lab_bidang_id","nama_lab","namaJabatan","namaJabatanAlias","karyawan_id","subbagian"]

{"sheet":"tema","index":7,"n_rows":4,"n_cols":12,"rows_kept":4,"cut":false,"hidden":true,"merged":[]}
[null,"header",null,null,"Url:","https://lims.sucofindo.co.id",null,null,"https://lims.sucofindo.co.id",null,null,"prod"]
[null,"input",null,null,"WebDav","https://cloud.sucofindo.co.id/drivesci/remote.php/webdav/",null,null,"https://apps.sucofindo.co.id/ci-lims",null,null,"dev"]
[null,"hitungan"]
[null,"formula"]

{"sheet":"results","index":8,"n_rows":21,"n_cols":2,"rows_kept":21,"cut":false,"hidden":true,"merged":[]}
["name","link"]
["bulbasaur","https://pokeapi.co/api/v2/pokemon/1/"]
["ivysaur","https://pokeapi.co/api/v2/pokemon/2/"]
["venusaur","https://pokeapi.co/api/v2/pokemon/3/"]
["charmander","https://pokeapi.co/api/v2/pokemon/4/"]
["charmeleon","https://pokeapi.co/api/v2/pokemon/5/"]
["charizard","https://pokeapi.co/api/v2/pokemon/6/"]
["squirtle","https://pokeapi.co/api/v2/pokemon/7/"]
["wartortle","https://pokeapi.co/api/v2/pokemon/8/"]
["blastoise","https://pokeapi.co/api/v2/pokemon/9/"]
["caterpie","https://pokeapi.co/api/v2/pokemon/10/"]
["metapod","https://pokeapi.co/api/v2/pokemon/11/"]
["butterfree","https://pokeapi.co/api/v2/pokemon/12/"]
["weedle","https://pokeapi.co/api/v2/pokemon/13/"]
["kakuna","https://pokeapi.co/api/v2/pokemon/14/"]
["beedrill","https://pokeapi.co/api/v2/pokemon/15/"]
["pidgey","https://pokeapi.co/api/v2/pokemon/16/"]
["pidgeotto","https://pokeapi.co/api/v2/pokemon/17/"]
["pidgeot","https://pokeapi.co/api/v2/pokemon/18/"]
["rattata","https://pokeapi.co/api/v2/pokemon/19/"]
["raticate","https://pokeapi.co/api/v2/pokemon/20/"]

{"sheet":"listparameter","index":9,"n_rows":21,"n_cols":5,"rows_kept":21,"cut":false,"hidden":true,"merged":[]}
["id","Penetapan","LOV","Metode","Kode Penetapan"]
[16,"MC Top","16-MC Top",null,"MCTOP01"]
[17,"MC Analitik","17-MC Analitik",null,"MCAnalitik001"]
[18,"Kadar LOI","18-Kadar LOI",null,"LOI"]
[19,"Kadar Assay/Digest/Fuse","19-Kadar Assay/Digest/Fuse",null,"Kadar Assay"]
[21,"Partikel size distribution","21-Partikel size distribution",null,"PSD"]
[22,"Partikel Size 10 mesh","22-Partikel Size 10 mesh",null,"PSD 10"]
[23,"partikel size distribution tes","23-partikel size distribution tes",null,"psd t"]
[24,"Temp 5 ulangan","24-Temp 5 ulangan",null,"tmp5"]
[26,"Input ICP","26-Input ICP",null,"InICP"]
[27,"Digest","27-Digest",null,"Dgs001"]
[28,"Input ICP -2","28-Input ICP -2",null,"INICP2"]
[29,"Total Moisture for Biomass","29-Total Moisture for Biomass"]
[30,"Total Moisture Biomass and Coal","30-Total Moisture Biomass and Coal",null,"TMBC"]
[31,"Foreign Matters","31-Foreign Matters",null,"FM"]
[35,"Hasil ICP","35-Hasil ICP",null,"ImportRSTICP"]
[36,"Laporan Analisa ICP","36-Laporan Analisa ICP",null,"ICP_001"]
[37,"Laporan Analisa ICP all","37-Laporan Analisa ICP all",null,"LaporanAnalisaICP"]
[43,"KADAR ASAM pH","43-KADAR ASAM pH",null,"pH001"]
[45,"Penentuan Kandungan Base Metal Dalam Contoh Mineral","45-Penentuan Kandungan Base Metal Dalam Contoh Mineral",null,"PO/MIN-MP/O5"]
[342,"Form Analisa Batuan MOM","342-Form Analisa Batuan MOM",null,"FormMOM001"]

{"sheet":"listvariable","index":10,"n_rows":164,"n_cols":5,"rows_kept":164,"cut":false,"hidden":true,"merged":[]}
["kode variable","penetapan","variable","formula","lov"]
[23,16,"bobot sample"]
[24,16,"tray"]
[25,16,"tray+sample basah"]
[26,16,"tray+sample kering"]
[27,16,"MC","=((&quot;vr3&quot;-&quot;vr2&quot;)-(&quot;vr4&quot;-&quot;vr2&quot;))*100/(&quot;vr3&quot;-&quot;vr2&quot;)"]
[28,17,"Kotak Timbang"]
[29,17,"Kotak Timbang + Sample"]
[30,17,"Kotak Timbang + Sample setelah Pengeringan"]
[31,17,"MC Analitik","=((&quot;vr2&quot;-&quot;vr1&quot;)-(&quot;vr3&quot;-&quot;vr1&quot;))/(&quot;vr2&quot;-&quot;vr1&quot;)*100"]
[32,18,"Crucible Kosong"]
[33,18,"Crucible + Sample"]
[34,18,"Crucible + Sample Setelah Pemijaran"]
[35,18,"Kadar LoI","=((&quot;vr2&quot;-&quot;vr1&quot;)-(&quot;vr3&quot;-&quot;vr1&quot;))*100/(&quot;vr2&quot;-&quot;vr1&quot;)"]
[36,19,"bobot sample"]
[37,19,"labu ukur awal V0",null,"5,10,25,50,100,250,500"]
[38,19,"labu ukur akhir V1",null,"5,10,25,50,100,250,500"]
[39,19,"Jumlah Pipet P0",null,"1,2,5,10,25,50"]
[40,19,"labu ukur akhir pengenceran lanjur P1",null,"1,5,10,25,50,100,250,500"]
[41,19,"Faktor pengenceran","=(&quot;vr3&quot;/&quot;vr2&quot;)*(&quot;vr5&quot;/&quot;vr4&quot;)"]
[43,21,"bobot mesh kosong"]
[44,21,"bobot mesh + sample"]
[45,21,"bobot mesh + sample retained"]
[46,21,"persen retained","=((&quot;vr3&quot;-&quot;vr1&quot;)/(&quot;vr2&quot;-&quot;vr1&quot;))*100"]
[47,22,"bobot mesh kosong"]
[48,22,"bobot mesh + sample"]
[49,22,"sample retained #10"]
[50,22,"persen retained #10","=((&quot;vr3&quot;)/(&quot;vr2&quot;-&quot;vr1&quot;))*100"]
[51,22,"sample retained #20"]
[52,22,"persen retained #20","=((&quot;vr5&quot;)/(&quot;vr2&quot;-&quot;vr1&quot;))*100"]
[53,22,"bobot mesh + sample retained #30"]
[54,22,"persen pass by #20","=100-&quot;vr4&quot;-&quot;vr6&quot;"]
[55,23,"bobot mesh kosong"]
[56,23,"bobot mesh + sample"]
[57,23,"bobot mesh + sample retained"]
[58,23,"persen retained","=((&quot;vr3&quot;-&quot;vr1&quot;)/(&quot;vr2&quot;-&quot;vr1&quot;))*100"]
[59,24,"T1"]
[60,24,"T2"]
[61,24,"T3"]
[62,24,"T4"]
[63,24,"T5"]
[64,24,"Tstd","=stdev.p(&quot;vr1&quot;:&quot;vr5&quot;)"]
[66,26,"bobot sample assay","=gethasilpenetapan(&quot;vr-2&quot;,&quot;vr-1&quot;,36)"]
[67,26,"volume akhir","=gethasilpenetapan(&quot;vr-2&quot;,&quot;vr-1&quot;,38)"]
[68,26,"dillution","=gethasilpenetapan(&quot;vr-2&quot;,&quot;vr-1&quot;,41)"]
[69,27,"Bobot Sampel"]
[70,27,"Volume Awal"]
[71,27,"Volume Pipet yang Digunakan",null,"1,2,5,10,20,25,50"]
[72,27,"Final Volume setelah pengenceran",null,"1,10,20,25,50,100"]
[73,27,"Faktor Pengenceran Dilution","=(&quot;vr4&quot;/&quot;vr3&quot;)"]
[74,28,"Bobot Sampel","=gethasilpenetapan(&quot;vr-2&quot;,&quot;vr-1&quot;,69)"]
[75,28,"Volume Awal","=gethasilpenetapan(&quot;vr-2&quot;,&quot;vr-1&quot;,70)"]
[76,28,"Faktor Pengenceran Dilution","=gethasilpenetapan(&quot;vr-2&quot;,&quot;vr-1&quot;,73)"]
[77,29,"Bobot Sampel"]
[78,29,"Bobot Tray Kosong (ADL)"]
[79,29,"Bobot Tray + Sampel (ADL)"]
[80,29,"Bobot Tray + Sampel setelah Pengeringan (ADL)"]
[81,29,"Kadar Air (ADL)","=(&quot;vr3&quot;-&quot;vr4&quot;)/(&quot;vr3&quot;-&quot;vr2&quot;)*100"]
[82,29,"Bobot Tray (RM)"]
[83,29,"Bobot Tray + Sampel (RM)"]
[84,29,"Bobot Tray + Sampel setelah Pengeringan (RM)","=(&quot;vr6&quot;-&quot;vr7&quot;)/(&quot;vr6&quot;-&quot;vr5&quot;)*100"]
[85,29,"Kadar Total Moisture","=((100-&quot;vr5&quot;/100)*&quot;vr8&quot;)+&quot;vr5&quot;"]
[86,30,"Bobot Sampel Original"]
[87,30,"Bobot Tray Kosong (ADL)"]
[88,30,"Bobot Tray + Sampel (ADL)"]
[89,30,"Bobot Tray + Sampel setelah Pengeringan (ADL)"]
[90,30,"Kadar Air (ADL)","=(&quot;vr3&quot;-&quot;vr4&quot;)/(&quot;vr3&quot;-&quot;vr2&quot;)*100"]
[91,30,"Bobot Tray Kosong (RM)"]
[92,30,"Bobot Tray + Sampel (RM)"]
[93,30,"Bobot Tray + Sampel setelah Pengeringan (RM)"]
[94,30,"Kadar Air (RM)","=(&quot;vr7&quot;-&quot;vr8&quot;)/(&quot;vr7&quot;-&quot;vr6&quot;)*100"]
[95,30,"Kadar Total Moisture","=(((100-&quot;vr5&quot;)/100)*&quot;vr9&quot;)+&quot;vr5&quot;"]
[96,31,"Fibers"]
[97,31,"Kernels"]
[98,31,"Shells"]
[99,31,"Stones"]
[100,31,"Styrofoams"]
[101,31,"Clothes"]
[102,31,"Bones"]
[103,31,"Rubbers"]
[104,31,"Metals"]
[105,31,"Plastics"]
[106,31,"Glasses"]
[107,31,"Sludges"]
[108,31,"Papers"]
[109,31,"Woods"]
[110,31,"Garden Wastes"]
[111,31,"Sand"]
[112,31,"Others (lain - lain)"]
[113,31,"Total Bobot Foreign Matters","=sum(&quot;vr1&quot;:&quot;vr17&quot;)"]
[114,31,"Kadar Fibers","=(&quot;vr1&quot;/&quot;vr18&quot;)*100"]
[115,31,"Kadar Kernels","=(&quot;vr2&quot;/&quot;vr18&quot;)*100"]
[116,31,"Kadar Shells","=(&quot;vr3&quot;/&quot;vr18&quot;)*100"]
[117,31,"Kadar Stone","=(&quot;vr4&quot;/&quot;vr18&quot;)*100"]
[118,31,"Kadar Styrofoams","=(&quot;vr5&quot;/&quot;vr18&quot;)*100"]
[119,31,"Kadar Clothes","=(&quot;vr6&quot;/&quot;vr18&quot;)*100"]
[120,31,"Kadar Bones","=(&quot;vr7&quot;/&quot;vr18&quot;)*100"]
[121,31,"Kadar Rubbers","=(&quot;vr8&quot;/&quot;vr18&quot;)*100"]
[122,31,"Kadar Metals","=(&quot;vr9&quot;/&quot;vr18&quot;)*100"]
[123,31,"Kadar Plastics","=(&quot;vr10&quot;/&quot;vr18&quot;)*100"]
[124,31,"Kadar Glasses","=(&quot;vr11&quot;/&quot;vr18&quot;)*100"]
[125,31,"Kadar Sludges","=(&quot;vr12&quot;/&quot;vr18&quot;)*100"]
[126,31,"Kadar Papers","=(&quot;vr13&quot;/&quot;vr18&quot;)*100"]
[127,31,"Kadar Woods","=(&quot;vr14&quot;/&quot;vr18&quot;)*100"]
[128,31,"Kadar Garden Wastes","=(&quot;vr15&quot;/&quot;vr18&quot;)*100"]
[129,31,"Kadar Sand","=(&quot;vr16&quot;/&quot;vr18&quot;)*100"]
[130,31,"Kadar Others","=(&quot;vr17&quot;/&quot;vr18&quot;)*100"]
[131,31,"Total Persentase Foreign Matters","=sum(&quot;vr19&quot;:&quot;vr35&quot;)"]
[132,31,"Berat Pengotor Selain Shell","=&quot;vr18&quot;-&quot;vr3&quot;"]
[133,31,"Berat Pengotor Selain Wood","=&quot;vr18&quot;-&quot;vr14&quot;"]
[134,31,"Kadar Impurities of Shell","=(&quot;vr37&quot;-&quot;vr18&quot;)*100"]
[135,31,"Kadar Impurities of Wood","=(&quot;vr38&quot;-&quot;vr18&quot;)*100"]
[136,31,"Kadar Purity of Shell","=100-&quot;vr39&quot;"]
[137,31,"Kadar Purity of Wood","=100-&quot;vr40&quot;"]
[141,35,"Iron Trioxide (Fe2O3)"]
[142,35,"Aluminium Trioxide (Al2O3)"]
[143,35,"Calcium Oxide (CaO)"]
[144,35,"Magnesium Oxide (MgO)"]
[145,35,"Manganese Dioxide (MnO2)"]
[146,35,"Chromium Trioxide (Cr2O3)"]
[147,35,"Sodium Oxide (Na2O)"]
[148,35,"Potassium Oxide (K2O)"]
[149,35,"Silicon Dioxide (SiO2)"]
[150,35,"Titanium Dioxide (TiO2)"]
[151,36,"MC TOP","=gethasilpenetapan(&quot;vr-2&quot;,&quot;vr-1&quot;,27)"]
[152,36,"Kadar Loi","=gethasilpenetapan(&quot;vr-2&quot;,&quot;vr-1&quot;,35)"]
[153,36,"MC Analitic","=gethasilpenetapan(&quot;vr-2&quot;,&quot;vr-1&quot;,31)"]
[154,36,"Iron Trioxide (Fe2O3)","=gethasilpenetapan(&quot;vr-2&quot;,&quot;vr-1&quot;,141)"]
[155,37,"MC TOP","=gethasilpenetapan(&quot;vr-2&quot;,&quot;vr-1&quot;,27)"]
[156,37,"Kadar LoI","=gethasilpenetapan(&quot;vr-2&quot;,&quot;vr-1&quot;,35)"]
[157,37,"MC Analitik","=gethasilpenetapan(&quot;vr-2&quot;,&quot;vr-1&quot;,31)"]
[158,37,"Iron Trioxide (Fe2O3)","=gethasilpenetapan(&quot;vr-2&quot;,&quot;vr-1&quot;,141)"]
[159,37,"Aluminium Trioxide (Al2O3)","=gethasilpenetapan(&quot;vr-2&quot;,&quot;vr-1&quot;,142)"]
[160,37,"Calcium Oxide (CaO)","=gethasilpenetapan(&quot;vr-2&quot;,&quot;vr-1&quot;,143)"]
[161,37,"Magnesium Oxide (MgO)","=gethasilpenetapan(&quot;vr-2&quot;,&quot;vr-1&quot;,144)"]
[162,37,"Manganese Dioxide (MnO2)","=gethasilpenetapan(&quot;vr-2&quot;,&quot;vr-1&quot;,145)"]
[163,37,"Chromium Trioxide (Cr2O3)","=gethasilpenetapan(&quot;vr-2&quot;,&quot;vr-1&quot;,146)"]
[164,37,"Sodium Oxide (Na2O)","=gethasilpenetapan(&quot;vr-2&quot;,&quot;vr-1&quot;,147)"]
[165,37,"Potassium Oxide (K2O)","=gethasilpenetapan(&quot;vr-2&quot;,&quot;vr-1&quot;,148)"]
[166,37,"Silicon Dioxide (SiO2)","=gethasilpenetapan(&quot;vr-2&quot;,&quot;vr-1&quot;,149)"]
[167,37,"Titanium Dioxide (TiO2)","=gethasilpenetapan(&quot;vr-2&quot;,&quot;vr-1&quot;,150)"]
[185,43,"PERTAMA"]
[186,43,"KEDUA",null,"1,5,10"]
[187,43,"HASIL%","=&quot;vr1&quot;-&quot;vr2&quot;"]
[193,45,"Massa Sampel (gr)"]
[194,45,"Volume Larutan (mL)"]
[195,45,"Dilution",null,"1,2,5,10,20,25,33.3333"]
[3240,342,"Bobot Kotak Timbang"]
[3241,342,"Bobot Kotak Timbang + Contoh Sebelum Pemanasan"]
[3242,342,"Bobot Kotak Timbang + Contoh Setelah Pemanasan 1"]
[3243,342,"Bobot Kotak Timbang + Contoh Setelah Pemanasan 2"]
[3244,342,"Bobot Kotak Timbang + Contoh Setelah Pemanasan 3"]
[3245,342,"Kadar Air","=((&quot;vr2&quot;-&quot;vr5&quot;)/(&quot;vr2&quot;-&quot;vr1&quot;)*100"]
[3246,342,"Bobot Cawan Kosong"]
[3247,342,"Bobot Cawan + Contoh Sebelum Pemanasan"]
[3248,342,"Bobot Cawan + Contoh Setelah Pemanasan 1"]
[3249,342,"Bobot Cawan + Contoh Setelah Pemanasan 2"]
[3250,342,"Bobot Cawan + Contoh Setelah Pemanasan 3"]
[3251,342,"Kadar LOI","=((&quot;vr8&quot;-&quot;vr11&quot;)/(&quot;vr8&quot;-&quot;vr7&quot;)*100"]
[3252,342,"Bobot Trace Element"]
[3253,342,"Bobot Contoh"]
[3254,342,"Bobot Cawan Kosong Sebelum Pemanasan"]
[3255,342,"Bobot Cawan + Isi Setelah Pemanasan"]
[3256,342,"Kadar SiO2 Batuan","=((&quot;vr16&quot;-&quot;vr15&quot;)/(&quot;vr14&quot;)*100"]